Workbook

Sheet Tegevused_vorm
D1: "PÕLEVKIVI KASUTAMISE RIIKLIKU ARENGUKAVA 2016–2030" RAKENDUSPLAAN
A3: NR | B3: Eesmärk/Meede/Tegevus | C3: Indikaator/Tulemus | D3: EA liik | E3: Toetus | F3: COFOG | G3: Vastutaja | H3: Indikaatori algtase (2013) | I3: 2016 | J3: 2017 | K3: 2018 | L3: 2019 | M3: Periood kokku | N3: Indikaatori sihttase (2020) | O3: Seos teiste valdkonna arengukavadega
B4: MAKSUMUS KOKKU | I4: =SUM(I5,I24,I44) -> 741168 | J4: =SUM(J5,J24,J44) -> 856000 | K4: =SUM(K5,K24,K44) -> 1190000 | L4: =SUM(L5,L24,L44) -> 860000 | M4: =SUM(M5,M24,M44) -> 3647168
B5: 1. Põlevkivi kaevandamise efektiivsuse tõstmine ja negatiivse keskkonnamõju vähendamine | I5: =SUM(I9,I13,I21) -> 90000 | J5: =SUM(J9,J13,J21) -> 331000 | K5: =SUM(K9,K13,K21) -> 515000 | L5: =SUM(L9,L13,L21) -> 185000 | M5: =SUM(M9,M13,M21) -> 1121000
C6: Allmaakaevandamise kao osakaal kaevandatud ja kasutuskõlbmatuks muudetud põlevkivivarust , % | H6: 29.2 | N6: kuni 29,2
C7: Aheraine taaskasutamine, % | H7: 40 | N7: vähemalt 40
C8: Maapõuest väljatud põlevkivivaru tonni kohta välja pumbatud vee kogus | H8: 15 m3 | N8: 14 m3
B9: 1.1. Põlevkivi säästliku kaevandamise edendamine | I9: =SUM(I10:I12) -> 40000 | J9: =SUM(J10:J12) -> 166000 | K9: =SUM(K10:K12) -> 270000 | L9: 110000 | M9: 586000
B10: 1.1.1. Eesti põlevkivimaardla kaevandamise eelispiirkondade määramine 1.1.1.1. Põlevkivivarule kehtestatud kriteeriumitele hinnangu andmine ning vajaduse korral muutmine 1.1.1.2. Põlevkivi kaevandamise eelispiirkondade määramine looduskeskkonna ja majanduslike tingimuste põhjal | C10: Eelispiirkonnad määratakse kaevandamistundlikkuse ja majanduslike näitajate alusel, mille tulemuseks on põlevkivi säästlikum kaevandamine ja sellest tuleneva negatiivse keskkonnamõju vähendamine | D10: KIK | G10: KKM MKM | I10: 40000 | J10: 26000 | K10: 50000 | M10: =SUM(I10:L10) -> 116000 | O10: Looduskaitse arengukava ENMAK
B11: 1.1.2. Eelispiirkondade maavara kaevandamise prognoositav mõju soode hüdroloogilisele režiimile | C11: Uus, mõõtmistel põhinev teadmine soosetete veejuhtivuse ja kihtide leviku kohta on algandmestikuks kaevandamistingimuste määramisel | D11: KIK | G11: KKM | J11: 140000 | K11: 220000 | M11: =SUM(I11:K11) -> 360000 | O11: Looduskaitse arengukava Veemajanduskava
B12: 1.1.3. Rakendusuuring põlevkivi kaevandamise kao vähendamise võimaluste selgitamiseks ja rakendamiseks | C12: Kaevandamistehnoloogia uuendamise tulemusena tõuseb põlevkivi kaevandamise ja kasutamise majanduslik efektiivsus ning suureneb otseselt kasutatava põlevkivivaru koguse osakaal kaevandamiseks antud põlevkivivarust (näiteks võetakse taas kasutusele maapinna lauslangatamise kaevandamisviis) | D12: KIK | G12: KKM | L12: 110000 | M12: =SUM(I12:L12) -> 110000 | O12: Ehitusmaavarade arengukava
B13: 1.2. Põlevkivi kaevandamisega kaasneva negatiivse mõju vähendamine looduskeskkonnale ja veevarustusele | I13: =SUM(I14:I20) -> 0 | J13: =SUM(J14:J20) -> 165000 | K13: =SUM(K14:K20) -> 185000 | L13: =SUM(L14:L20) -> 75000 | M13: =SUM(M14:M20) -> 425000
B14: 1.2.1. Kaevandamisest mõjutatud piirkonna (ja selle puhveralade) pinna- ja põhjavee mudeli koostamine | C14: Avalikuks kasutamiseks loodud pinna- ja põhjavee mudeli abil on võimalik eelkõige analüüsida veerežiimi, prognoosida põhjaveetaset ja kvaliteeti ning seega parandada põlevkivi kaevandamisest mõjutatud piirkonna põhjavee seisundit | D14: RE | G14: KKM | K14: 75000 | L14: 75000 | M14: =SUM(I14:L14) -> 150000 | O14: Riiklik keskkonnaseire
B15: 1.2.2. Kaevandamispiirkonna põhjaveetaseme muutusest tingitud negatiivse mõju leevendusmeetmete määramine ja nende rakendamise võimalikkuse (tõhususe, keskkonnamõju, maksumuse) analüüs | C15: Kehtestatud leevendusmeetmed vähendavad või hoiavad ära kaevandamisest põhjustatud negatiivset keskkonnamõju, eelkõige põhjaveest sõltuvale looduskeskkonnale | D15: KIK | G15: KKM | J15: 50000 | M15: =SUM(I15:L15) -> 50000 | O15: Veemajanduskavad
B16: 1.2.3. Veevarustuse tagamine kaevandatud aladel | C16: Põlevkivi kaevandamisest mõjutatud piirkonna elanikud on nõuetekohase joogiveega varustatud | D16: RE | G16: KKM | J16: 60000 | M16: =SUM(I16:L16) -> 60000 | O16: Veemajanduskavad
B17: 1.2.4. Keskkonnalubade alusel tehtud keskkonnaseire andmete sidumine riikliku keskkonnaseire andmekoguga | C17: Objektiivse info saamine põlevkivi kaevandamisest mõjutatud piirkonna keskkonnaseisundi kohta, mis aitab tõhustada järelevalvet keskkonna üle ja hoida ära või leevendada negatiivset keskkonnamõju | G17: KKM | M17: =SUM(I17:L17) -> 0 | O17: Keskkonnaregister Hüdroloogiline mudel KOTKAS
B18: 1.2.5. Korrastatud karjäärialade inventeerimine (sh seireandmete analüüs) | C18: Inventuuri käigus selgunud korrastatud karjääride olukorra põhjal on võimalik parandada edaspidise korrastamise nõudeid. See tõstab pärast kaevandamist muuks otstarbeks kasutusse võetavate alade kvaliteeti | D18: KIK | G18: KKM | K18: 60000 | M18: =SUM(I18:L18) -> 60000 | O18: Looduskaitse arengukava
B19: 1.2.6. Aheraine taaskasutamise suurendamine | C19: Uurimistöö tulemusena saadakse objektiivne ülevaade aheraine maksimaalse taaskasutamise reaalsetest võimalustest, arvestades eelkõige aheraine kui ehitusmaterjali kvaliteeti ja nõudlust turul ning logistikat. | D19: RE | G19: KKM MKM | J19: 55000 | M19: 55000 | O19: Jäätmekava
B20: 1.2.7. Kaevandamisjäätmete käitlemise PVT väljatöötamine, arendamine ja rakendamine | C20: Põlevkivi kaevandamisjäätmeid käideldakse parimal võimalikul viisil, ressurssi kasutatakse säästlikult | D20: RE | G20: KKM | K20: 50000 | M20: =SUM(I20:L20) -> 50000 | O20: Jäätmekava
B21: 1.3. Põlevkivi kaevandamisest tingitud jääkreostuse mõju ja pärandmõju leevendamine | I21: =SUM(I22:I23) -> 50000 | J21: =SUM(J22:J23) -> 0 | K21: 60000 | L21: 0 | M21: 110000
B22: 1.3.1. Suletud kaevandamisjäätmehoidlate seisukorra hindamine ja korrastamine | C22: Ohtlike ainete sisaldus õhus, vees ja pinnases väheneb ning looduskeskkonna tingimused paranevad | D22: KIK | G22: KKM | K22: 60000 | M22: =SUM(I22:L22) -> 60000 | O22: Jäätmekava
B23: 1.3.2. Altkaevandatud alade pärandmõju asukoha ja ulatuse selgitamine ning mõju leevendamine | C23: Altkaevandatud alade inventeerimine ja selle tulemusena saadud andmete põhjal leevendusmeetmete rakendamine, vähendades põlevkivisektori varasemalt tekitatud pärandmõju | D23: KIK | G23: KKM | I23: 50000 | M23: =SUM(I23:L23) -> 50000 | O23: Keskkonnaregister Maa-ameti geoportaal
B24: 2. Põlevkivi kasutamise efektiivsuse tõstmine ja negatiivse keskkonnamõju vähendamine | I24: =SUM(I31,I36,I41) -> 301168 | J24: =SUM(J31,J36,J41) -> 125000 | K24: 275000 | L24: 275000 | M24: 976168
C25: Põlevkiviõli tootmise energeetiline efektiivsus, % | H25: 76 | N25: vähemalt 76
C26: CO2 eriheide väljastatud summaarse elektrienergia ja koostootmisel soojusenergia suhtes, tCO2/GWhe+th | H26: 1186 | N26: kuni 1186
C27: Taaskasutatud põlevkivituha osakaal kogutekkest, % | H27: 4.5 | N27: vähemalt 4,5
C28: Põlevkivist energia tootmise majandusliku efektiivsuse indikaator, €/t kaubapõlevkivi kohta | H28: 34.55
C29: Põlevkivist energia tootmisel loodud lisandväärtus kaevandatud ja kasutuskõlbmatuks muudetud põlevkivivaru suhtes, €/t | H29: 29.78
C30: Põlevkivist energia tootmisel loodud lisandväärtus ladestatud jäätmete suhtes, €/t | H30: 71.04
B31: 2.1. Põlevkivi kasutamise efektiivsuse tõstmine | I31: =SUM(I32:I35) -> 170000 | J31: =SUM(J32:J35) -> 125000 | K31: 125000 | L31: 125000 | M31: 545000
B32: 2.1.1. Põlevkiviõli ja –elektri tootmise efektiivsuse ning majandusliku efektiivsuse indikaatorite arvutusmetoodika väljatöötamine ja nende alusel andmete analüüsimine | C32: Põlevkiviõli ja -elektri tootmise ning majandusliku efektiivsuse indikaatorid on määratud, neid rakendatakse arengukava eesmärkide täitmise analüüsimiseks | D32: RE | G32: KKM MKM | I32: 70000 | J32: 25000 | K32: 25000 | L32: 25000 | M32: =SUM(I32:L32) -> 145000 | O32: ENMAK
B33: 2.1.2. PVT arendamine ja rakendamine elektri tootmisel | C33: Saasteainete heite piiramine, ressursisäästlikkuse tõstmine, tekkivate jäätmete vähendamine ja taaskasutamise tõstmine | G33: KKM MKM | M33: =SUM(I33:L33) -> 0 | O33: ENMAK Jäätmekava
B34: 2.1.3. PVT arendamine ja rakendamine õli tootmisel | C34: Saasteainete heite piiramine, ressursisäästlikkuse tõstmine, tekkivate jäätmete vähendamine ja taaskasutamise tõstmine | G34: KKM MKM | M34: =SUM(I34:L34) -> 0 | O34: ENMAK Jäätmekava
B35: 2.1.4. Põlevkivi kasutamise väärtusahela pikendamise võimaluste analüüs 2.1.4.1. Uuring(ud) heitsoojuse ning jäätmete (eelkõige poolkoksi ja põlevkivituha) taaskasutamisest 2.1.4.2. Uuring(ud) põlevkivi töötlemisel saadud vedelprodukti ja gaasi väärindamisest 2.1.4.3. Uuring(ud) põlevkivitoorõlist mootorkütuste tootmisvõimalustest | C35: Põlevkiviressursi võimalikult maksimaalne kasutamine: ressursikasutust on analüüsitud ja välja selgitatud majanduslikult ning tehnoloogiliselt efektiivsed ja keskkonnakaitse seisukohalt vastuvõetavad põlevkivi kasutamise väärtusahela pikendamise võimalused. Analüüsi tulemusi kasutatakse edasistes põlevkivialases TA tegevuses | D35: KIK | G35: KKM MKM | I35: 100000 | J35: 100000 | K35: 100000 | L35: 100000 | M35: =SUM(I35:L35) -> 400000 | O35: ENMAK Jäätmekava
B36: 2.2. Põlevkivi kasutamisest tingitud negatiivse keskkonnamõju vähendamine | I36: =SUM(I37:I38,I39,I40) -> 131168 | J36: =SUM(J37:J38,J39,J40) -> 0 | K36: =SUM(K37:K38,K39,K40) -> 150000 | L36: =SUM(L37:L38,L39,L40) -> 150000 | M36: =SUM(M37:M38,M39,M40) -> 431168
B37: 2.2.1. Veekeskkonnale ohtlike ainete allikate uurimine ja kontrolli tõhustamine, ohtlike ainete heite mõju selgitamine veekeskkonnale, keskkonnanõuete ja -meetmete täpsustamine | C37: Uuringu tulemuste põhjal saab analüüsida keskkonna-koormuse (reostusallikate ja -koormuste koosmõju) piiramise võimalusi, et tagada keskkonnalubade täpsustamisega keskkonnakvaliteedi piirväärtustele vastav keskkonnaseisund ja vähendada ohtu inimese tervisele ja elusloodusele | D37: KIK | G37: KKM | I37: 50000 | M37: =SUM(I37:L37) -> 50000 | O37: Veemajanduskavad Jäätmekava
B38: 2.2.2. Lõhnaaine heitkoguse arvutusmetoodika väljatöötamine ning keskkonnalubade täiendamine selles valdkonnas | C38: Töötatakse välja lõhnahäiringut põhjustavast tegevusest (sh põlevkivitööstusest) välisõhku eralduva lõhnaaine heitkoguse arvutusmetoodika, mis võimaldab edaspidi lõhnaheidet keskkonnaloas täpsemalt reguleerida ja põhjendatud juhul nõuda käitajalt lisameetmeid | D38: KIK | G38: KKM MKM | I38: 81168 | M38: =SUM(I38:L38) -> 81168 | O38: Rahvastiku tervise arengukava 2009-2020
B39: 2.2.3. Põlevkivi kasutamise jääkreostuse inventeerimine, analüüs ning negatiivse mõju vähendamine (jääkreostuskollete ohutumaks muutmine) | C39: Jääkreostuskollete ohutumaks muutmine vähendab ohtlike ainete sattumist pinna- ja põhjavette. Seega paraneb pinnase seisund, veekvaliteet ning looduskeskkonna seisund tervikuna.; väheneb negatiivne mõju inimese tervisele ja elusloodusele | G39: KKM | M39: =SUM(I39:L39) -> 0 | O39: Veemajanduskavad
B40: 2.2.4. Ladestatud jäätmete koostise ja ohtlikkuse määramine | C40: Luuakse eeldused jäätmete keskkonnale ohutuks ladestamiseks ja laiemaks taaskasutamiseks | D40: KIK | G40: KKM | K40: 150000 | L40: 150000 | M40: =SUM(I40:L40) -> 300000 | O40: Jäätmekava
B41: 2.3. Põlevkivitööstusest tingitud ühiskonnale avalduva mõju (mõju inimese tervisele ja sotsiaalse mõju) leevendamine | I41: =SUM(I42:I43,I55,I60) -> 0 | J41: =SUM(J42:J43,J55,J60) -> 0 | K41: =SUM(K42:K43,K55,K60) -> 0 | L41: =SUM(L42:L43,L55,L60) -> 0 | M41: =SUM(M42:M43,M55,M60) -> 0
B42: 2.3.1. Tervisenäitajate monitooring Ida- ja Lääne-Virumaal | C42: Elanikkonna tervisenäitajate jälgimise tulemuste alusel saab riik vajaduse korral kavandada riigiüleseid tervisesüsteemi arendusi (sh terviseedenduslike meetmete rakendamist). Lisaks sellele planeerivad KOVid võimaluste järgi kohalikku tegevust | G42: SoM KKM | M42: =SUM(I42:L42) -> 0 | O42: Rahvastiku tervise arengukava 2009-2020
B43: 2.3.2. Põlevkivi kaevandamisest ja töötlemisest tingitud negatiivse sotsiaalse mõju (sh mõju inimese tervisele) hindamine ja vähendamise võimaluste analüüs | C43: Analüüsi tulemuste põhjal võetakse vajaduse korral kasutusele keskkonnaalased meetmed, mis vähendavad põlevkivitööstuse negatiivset mõju elukeskkonnale; põlevkivipiirkonna elanike tervis ja heaolu paraneb | G43: SoM KKM | M43: =SUM(I43:L43) -> 0 | O43: Rahvastiku tervise arengukava 2009-2020
B44: 3. Põlevkivialase haridus- ja teadustegevuse arendamine | I44: =SUM(I51,I47) -> 350000 | J44: =SUM(J51,J47) -> 400000 | K44: =SUM(K51,K47) -> 400000 | L44: =SUM(L51,L47) -> 400000 | M44: =SUM(M51,M47) -> 1550000
C45: Põlevkivi kaevandamise või kasutamisega või nendest tuleneva keskkonnamõju uuringutega seotud teadusdoktori kaitstud väitekirjade arv aastas | H45: 3 | N45: Mitte vähem algtase-mest
C46: Põlevkivialaste rakendusuuringute kulu kõigi põlevkivialaste teadus- ja arendusuuringute maksumuse suhtes, % (€) | H46: 41 (521 721) | N46: Vähemalt 41
B47: 3.1. Põlevkivialane teadus- ja arendustöö | I47: =SUM(I48:I50,I55,I60) -> 200000 | J47: =SUM(J48:J50,J55,J60) -> 250000 | K47: =SUM(K48:K50,K55,K60) -> 250000 | L47: =SUM(L48:L50,L55,L60) -> 250000 | M47: =SUM(M48:M50,M55,M60) -> 950000
B48: 3.1.1. Põlevkivivaldkonna TA eri programmidesse integreeritud sisulise programmi koostamine kooskõlas arengukava peatükis 4.2.3 meetme 3.1 all nimetatud uurimisteemade valdkondade nelja temaatilise fookusega | C48: Põlevkivi uuringud on kajastatud vähemalt järgmistes programmides ja arengukavades: ENMAK, KKMi ressursitõhususe programm, nutika spetsialiseerumise rakendusuuringute programm. Uuringutel on rahaline kate | D48: Prog-ram-mid* | G48: KKM MKM HTM | I48: 50000 | J48: 50000 | K48: 50000 | L48: 50000 | M48: =SUM(I48:L48) -> 200000 | O48: KKMi ressursitõhususe programm Nutika spetsialiseerumise rakendusuuringute programm ENMAKi TA programm KIKi keskkonnaprogramm
B49: 3.1.2. Põlevkivivaldkonna väliskulu arvestamise metoodika väljatöötamine ja analüüs. Põlevkivivaldkonna ökoloogilise jalajälje väljaselgitamine | C49: Keskkonnakasutuse välismõjude arvestamise ja nende rahalise väärtuse arvutamise metoodikad on rakendatud ning ökoloogiline jalajälg on kirjeldatud | D49: RE | G49: MKM RaM KKM | I49: 150000 | M49: =SUM(I49:L49) -> 150000 | O49: ENMAK Keskkonnatasud
B50: 3.1.3. Uute ja efektiivsemate põlevkivi töötlemise tehnoloogiate väljatöötamine 3.1.3.1. Keevkihtpürolüüsi meetodite väljatöötamine õlitootmisel 3.1.3.2. Tahkekütuste vedeldamise tehnoloogiate rakendamisvõimaluste uurimine põlevkiviõli tootmiseks 3.1.3.3. Põlevkivi keevkihis ja hapnikuga rikastatud õhus põletamise uuringud 3.1.3.4. Põlevkivi ja teiste kütuste koospõletamise alased uuringud | C50: Uute põlevkiviõli tootmise tehnoloogiate evitamine võimaldab tõsta ressursi- ja keskkonnasäästlikkust; uute põletamistehnoloogiate evitamine võimaldab tõsta põlevkivi kasutamise efektiivsust energiatootmisel, vähendada keskkonnamõju ja jäätmete teket | D50: Prog-ram-mid* | G50: KKM MKM HTM | J50: 200000 | K50: 200000 | L50: 200000 | M50: =SUM(I50:L50) -> 600000 | O50: KKMi ressursitõhususe programm Nutika spetsialiseerumise rakendusuuringute programm ENMAKi TA programm KIKi keskkonnaprogramm
B51: 3.2. Põlevkivialane õppetöö | I51: =SUM(I52:I54,I58,I63) -> 150000 | J51: =SUM(J52:J54,J58,J63) -> 150000 | K51: 150000 | L51: 150000 | M51: 600000
B52: 3.2.1. Ülikoolide ja rakenduskõrgkoolide õppekavade täiendamine ning uuendamine arengukava peatükis 4.2.3 meetme 3.1 all nimetatud nelja valdkonna teemadega | C52: Igal aastal läbivaadatud ja vajaduse korral põlevkivi temaatikaga täiendatudning uuendatud õppekavad | D52: RE Prog-ram-mid* | G52: HTM MKM KKM kõrgkoolid | I52: 50000 | J52: 50000 | K52: 50000 | L52: 50000 | M52: =SUM(I52:L52) -> 200000 | O52: KKMi ressursitõhususe programm Nutika spetsialiseerumise rakendusuuringute programm ENMAKi TA programm KIKi keskkonnaprogramm
B53: 3.2.2. Spetsiaalse põlevkivi õppemooduli loomine, k.a tasemeõpe | C53: Koostatud ja kinnitatud on ülikoolidevaheline valikaine moodul, mis käsitleb spetsiifiliselt põlevkiviga seonduvaid magistri õppeaineid | D53: RE Prog-ram-mid* | G53: HTM MKM KKM kõrgkoolid | I53: 50000 | J53: 50000 | K53: 50000 | L53: 50000 | M53: =SUM(I53:L53) -> 200000 | O53: KKMi ressursitõhususe programm Nutika spetsialiseerumise rakendusuuringute programm ENMAKi TA programm KIKi keskkonnaprogramm
B54: 3.2.3. Ülikoolide, rakenduskõrgkoolide, valitsusasutuste, KOVide ja erasektori koostöö tõhustamine | C54: Koostöö toimub koostöömemorandumite alusel, korraldatakse ühisseminare, kus ülikoolid tutvustavad oma teadustöö tulemusi ning valitsusasutused ja erasektor tutvustavad oma vajadusi, praktikavõimalusi jne | D54: RE Prog-ram-mid* | G54: HTM MKM KKM kõrgkoolid KOVid | I54: 50000 | J54: 50000 | K54: 50000 | L54: 50000 | M54: =SUM(I54:L54) -> 200000 | O54: KKMi ressursitõhususe programm Nutika spetsialiseerumise rakendusuuringute programm ENMAKi TA programm KIKi keskkonnaprogramm
B56: *Märkus: rahastatakse KKMi ressursitõhususe ja nutika spetsialiseerumise rakendusuuringute programmist, ENMAKi TA programmist ja KIKi keskkonnaprogrammist
